Cogmind - Beta 13 @@@ ROGUE MODE // 2024.04.18 @ 21:10:29 Player: Calliope Result: Destroyed by G-34 Mercenary with Small Laser Performance ------------- Evolutions (0) 0 Regions Visited (2) 400 Robots Destroyed (17) 85 Value Destroyed (349) 349 Prototype IDs (0) 0 Alien Tech Used (0) 0 Bonus (0) 0 TOTAL SCORE: 834 Bonus ------- None Cogmind --------- Core Integrity 0/250 Matter 300/300 Energy 100/100 System Corruption 3% Temperature Cool (6) Movement Core (1350) Ox26 Location -10/Mines Parts ------- > --- POWER (1) -------- (None) > --- PROPULSION (2) --- (None) > --- UTILITY (2) ------ Huge Storage Unit > --- WEAPON (2) ------- (None) > --- INVENTORY (25) --- Light Nuclear Core Aluminum Leg Compact Wheel Medium Matter Pod (100) Structural Scanner Improved Terrain Scanner Seismic Detector Targeting Computer Grenade Launcher Peak State ------------ > --- POWER ------------ Light Ion Engine > --- PROPULSION ------- Aluminum Leg Aluminum Leg > --- UTILITY ---------- Small Storage Unit Hacking Suite > --- WEAPON ----------- Small Laser Grenade Launcher > --- INVENTORY -------- Light Ion Engine Wheel Wheel Compact Wheel Structural Scanner Improved Terrain Scanner Small Laser Mining Laser [Rating: 10] Favorites ----------- Power Light Ion Engine Engine Light Ion Engine Propulsion Wheel Leg Aluminum Leg Wheel Wheel Utility Hacking Suite Storage Huge Storage Unit Hackware Hacking Suite Weapon Small Laser Energy Gun Small Laser Ballistic Gun Light Assault Rifle Launcher Grenade Launcher Special Weapon Mining Laser Build | -11 -10 -10 ------- Run | Yrd Mat Min Slots Evolved . | . . . Power . | . . . Propulsion . | . . . Utility . | . . . Weapon . | . . . Parts Attached 22 | 6 12 4 Power 4 | 1 2 1 Engine 4 | 1 2 1 Core . | . . . Reactor . | . . . Propulsion 7 | 2 3 2 Treads . | . . . Leg 4 | 2 . 2 Wheel 3 | . 3 . Hover . | . . . Flight . | . . . Utility 3 | 1 2 . Device . | . . . Storage 2 | 1 1 . Processor . | . . . Hackware 1 | . 1 . Protection . | . . . Artifact . | . . . Weapon 8 | 2 5 1 Energy Gun 4 | 2 2 . Energy Cannon . | . . . Ballistic Gun 1 | . 1 . Ballistic Cannon . | . . . Launcher 2 | . 2 . Special Weapon 1 | . . 1 Impact Weapon . | . . . Slashing Weapon . | . . . Piercing Weapon . | . . . Special Melee Weapon . | . . . Unidentified Prototypes . | . . . Parts Lost 10 | . 1 9 Power 2 | . . 2 Propulsion 5 | . 1 4 Utility 1 | . . 1 Weapon 2 | . . 2 Highest Loss Streak 9 | . 1 9 To Critical Strikes . | . . . Average Slot Usage (%) 92 | . 95 69 Engine 13 | . 13 9 Leg 10 | . 10 12 Wheel 16 | . 17 12 Storage 14 | . 14 14 Hackware 10 | . 10 9 Energy Gun 16 | . 18 3 Ballistic Gun 1 | . . 3 Launcher 7 | . 8 . Naked Turns . | . . . Heaviest Build 87 | 10 87 85 Greatest Support 20 | 20 20 20 Greatest Overweight (x) 8 | . 8 4 Average Overweight (x) 2 | . 2 4 Largest Inventory Capacity 25 | 8 25 25 Average Capacity 17 | 6 18 25 Most Carried 14 | 8 14 13 Average Carried 10 | 4 10 10 Final Capacity 25 | 8 25 25 Final Carried 13 | 8 13 9 Class Distribution -------------------- 100% | Mutant Dominant Class ---------------- Mutant | -10/Materials Mutant | -10/Mines Resources | -11 -10 -10 ----------- Run | Yrd Mat Min Matter Collected 531 | 260 271 . Remotely . | . . . Salvage Created 410 | 21 378 11 Parts 30 | 3 27 . Haulers Intercepted . | . . . Recyclers Shooed 1 | . 1 . Parts Field Recycled . | . . . Retrieved Matter . | . . . Parts Self-Destructed . | . . . Prevented . | . . . Kills | -11 -10 -10 ------- Run | Yrd Mat Min Combat Hostiles Destroyed 13 | . 12 1 Guns 7 | . 7 . Cannons 1 | . . 1 AOE 5 | . 5 . Classes Destroyed 5 | 1 4 . Worker 2 | . 2 . Tunneler 1 | 1 . . Operator 1 | . 1 . Swarmer 6 | . 6 . Grunt 7 | . 6 1 Best Kill Streak 4 | 1 4 1 Combat Bots Only 3 | . 3 1 Max Kills in Single Turn 2 | 1 2 1 Gunslinging . | . . . Exploded 2 | . 2 . Melee . | . . . Uniques/NPCs Destroyed . | . . . Combat | -11 -10 -10 -------- Run | Yrd Mat Min Hostile Shots Fired 99 | . 38 61 Missed 14 | . 7 7 Damage Taken 1027 | . 404 623 Core 254 | . 104 150 Absorbed by Shields . | . . . Regen/Repaired (Parts) 37 | . 37 . Core Remaining (%) 100 | 100 . . Volleys Fired 44 | 1 37 6 Largest 2 | 2 2 2 Hottest 100 | 80 80 100 Shots Fired 80 | 2 71 7 Gun 70 | 2 66 2 Cannon . | . . . Launcher 5 | . 5 . Special 5 | . . 5 Kinetic 1 | . . 1 Thermal 74 | 2 66 6 Explosive 5 | . 5 . Electromagnetic . | . . . Robot Hit Streak 7 | 1 7 5 Robot Miss Streak 3 | . 3 2 Penetration Max . | . . . Secondary Targets 2 | . 2 . Max Gunslinging Chain 1 | . 1 . Shots Hit Robots 49 | 1 45 3 Core Hits 31 | 1 26 4 Critical Kills . | . . . Critical Parts Destroyed . | . . . Critical Strikes . | . . . Melee Attacks . | . . . Impact . | . . . Slashing . | . . . Piercing . | . . . Sneak Attacks . | . . . Combat Hostiles . | . . . Follow-up Attacks . | . . . Damage Inflicted 854 | 12 748 94 Guns 495 | 12 472 11 Cannons . | . . . Explosions 245 | . 245 . Melee . | . . . Ramming 66 | . 31 35 Kinetic . | . . . Thermal 543 | 12 472 59 Explosive 245 | . 245 . Electromagnetic . | . . . Impact . | . . . Slashing . | . . . Piercing . | . . . Highest Corruption 3 | . 3 3 Average Corruption 2 | . 2 3 Corruption Purged . | . . . Corruption Blocked . | . . . Effects 19 | . 17 2 Message Errors 3 | . 3 . Matter Fused 7 | . 6 1 Energy Discharges 2 | . 2 . Parts Rejected 2 | . 1 1 Data Loss (minor) 2 | . 2 . Misfires 2 | . 2 . Alerts 1 | . 1 . Overload Shots . | . . . Overflow Damage . | . . . Projectiles . | . . . Explosions . | . . . Melee . | . . . Knockbacks . | . . . Impact . | . . . Kinetic . | . . . Secondary . | . . . Self-Inflicted Damage 46 | . 46 . Shots 2 | . 2 . Rammed 3 | . 2 1 Targets Rammed 22 | . 2 20 Kicked 19 | . . 19 Crushed . | . . . Highest Temperature 238 | 18 238 114 Average Temperature 71 | 12 78 46 Received Heat Transfer 525 | . 186 339 Siege Activations . | . . . Robots Corrupted . | . . . Combat Hostiles . | . . . Parts Fried . | . . . Impact Corruptions . | . . . Robots Melted . | . . . Combat Hostiles . | . . . Parts Melted 2 | . 2 . Heat Transferred 1225 | 25 1075 125 Parts Sabotaged . | . . . Parts Stolen . | . . . Parts Stripped . | . . . Power Chain Reactions . | . . . Alert | -11 -10 -10 ------- Run | Yrd Mat Min Peak Influence 230 | 5 230 65 Initial 43 | . 3 43 Average 87 | 1 105 28 Maximum Alert Level 1 | . 1 . Low Security (%) 84 | 100 81 100 Level 1 15 | . 18 . Level 2 . | . . . Level 3 . | . . . Level 4 . | . . . Level 5 . | . . . High Security . | . . . Max Security . | . . . Squads Dispatched 2 | . 2 . Investigation . | . . . Extermination . | . . . Reinforcement 2 | . 2 . Assault . | . . . Garrison . | . . . Intercept . | . . . Searches Triggered . | . . . Construction Impeded . | . . . Haulers Reinforced . | . . . Active Scanning Responses . | . . . Cargo Convoy Interrupts . | . . . Stealth | -11 -10 -10 --------- Run | Yrd Mat Min Distress Signals 1 | . 1 . Communications Jammed . | . . . Distress Signals . | . . . Times Spotted 26 | . 24 2 Peak Tracking Total 5 | . 5 2 Tactical Retreats . | . . . Traps | -11 -10 -10 ------- Run | Yrd Mat Min Traps Triggered 3 | . 3 . Indirectly . | . . . Trap Hack Attempts . | . . . Triggered . | . . . Disarmed . | . . . Reprogrammed . | . . . Reused . | . . . Traps Extracted . | . . . Installed . | . . . Triggered . | . . . Machines | -11 -10 -10 ---------- Run | Yrd Mat Min Machines Disabled . | . . . Max in Single Turn . | . . . Machines Repaired . | . . . Machines Dismantled . | . . . Machines Sabotaged . | . . . Overloaded Fab Kills . | . . . Hacking | -11 -10 -10 --------- Run | Yrd Mat Min Machines Accessed 8 | . 8 . Terminals 5 | . 5 . Fabricators . | . . . Repair Stations 1 | . 1 . Recycling Units 2 | . 2 . Scanalyzers . | . . . Garrison Access . | . . . Total Hacks 12 | . 12 . Successful 8 | . 8 . Failed 4 | . 4 . Catastrophic . | . . . Database Lockouts . | . . . Manual 10 | . 10 . Terminals 7 | . 7 . Fabricators . | . . . Repair Stations 2 | . 2 . Recycling Units 3 | . 3 . Scanalyzers . | . . . Garrison Access . | . . . Terminal Hacks . | . . . Fabricator Hacks . | . . . Repair Station Hacks 2 | . 2 . Scan Component 1 | . 1 . Repair 1 | . 1 . Recycling Unit Hacks . | . . . Scanalyzer . | . . . Garrison Access Hacks . | . . . Unauthorized Hacks 6 | . 6 . Terminals 4 | . 4 . Assimilate 2 | . 2 . Botnet 2 | . 2 . Fabricators . | . . . Repair Stations . | . . . Recycling Units 2 | . 2 . Reject 2 | . 2 . Scanalyzers . | . . . Garrison Access . | . . . Data Cores Recovered . | . . . Used . | . . . Hacking Detections 5 | . 5 . Full Trace Events 1 | . 1 . Feedback Events . | . . . Feedback Blocked . | . . . Robot Schematics Acquired . | . . . Robots Built . | . . . Authchips . | . . . Time . | . . . Total Robot Build Rating . | . . . Part Schematics Acquired . | . . . Parts Built . | . . . Authchips . | . . . Time . | . . . Total Part Build Rating . | . . . Parts Repaired 1 | . 1 . Time 26 | . 26 . Parts Recycled . | . . . Recycled Matter . | . . . Retrieved Matter . | . . . Retrieved Components . | . . . Parts Scanalyzed . | . . . Part Schematics Acquired . | . . . Parts Damaged . | . . . Bothacking | -11 -10 -10 ------------ Run | Yrd Mat Min Used RIF Installer . | . . . Robots Hacked . | . . . Non-combat . | . . . Combat . | . . . Robot Hacks Applied . | . . . Relay Couplers Released . | . . . Fabnet Peak Effective % . | . . . Robots Rewired . | . . . Allies Hacked . | . . . Hacks Repelled . | . . . Allies | -11 -10 -10 -------- Run | Yrd Mat Min Total Allies . | . . . Largest Group . | . . . Highest-Rated Group . | . . . Highest-Rated Ally . | . . . Total Orders . | . . . Ally Attacks . | . . . Total Damage . | . . . Kills . | . . . Allies Corrupted . | . . . Allies Melted . | . . . Intel | -11 -10 -10 ------- Run | Yrd Mat Min Robot Analysis Total . | . . . Derelict Logs Recovered . | . . . Drone Launches . | . . . Drone Recoveries . | . . . Exploration | -11 -10 -10 ------------- Run | Yrd Mat Min Turns Passed 1534 | 150 1233 151 Spaces Moved 794 | 112 655 27 Core 9 | 9 . . Treads . | . . . Legs 370 | 103 267 . Wheels 415 | . 388 27 Hover . | . . . Flight . | . . . Fastest Speed 50 | 50 120 140 Average Speed 130 | 114 132 140 Slowest Speed 200 | 120 200 140 Overloaded Moves . | . . . Propulsion Burnouts . | . . . Robots Hopped . | . . . Cave-ins Triggered . | . . . Exploration Rate (%) 33 | 7 83 9 Regions Visited 2 Branch Regions 1 Pre-discovered Areas . | . . . Known Exits Taken . | . . . Unknown Exits Taken 2 | 1 1 . Scrap Searched . | . . . Spaces Dug . | . . . Terrain Destroyed 37 | . 34 3 Melee . | . . . Projectile 3 | . . 3 AOE 34 | . 34 . Terrain Rammed . | . . . Walls Destroyed . | . . . Machines Disabled . | . . . Actions | -11 -10 -10 --------- Run | Yrd Mat Min Total 1143 | 129 951 63 Wait 238 | 2 230 6 Move 792 | 111 654 27 Hop . | . . . Pick Up 19 | 9 10 . Fast Attach 8 | 5 3 . Attach 9 | 1 4 4 Detach 2 | . 2 . Swap 5 | . 5 . Drop 4 | . 4 . Fire 44 | 1 37 6 Melee . | . . . Ram 3 | . 2 1 Kick 19 | . . 19 Crush . | . . . Escape Stasis . | . . . Rewire . | . . . Trap . | . . . Miscellaneous . | . . . Route ------- -11/Scrapyard -10/Materials (discovered 4 exits: [*Mat x2] / [*Min x2]) -10/Mines (discovered 1 exit: [*Mat]) History --------- Turn | Location | Event 5 | -11/Scrapyard | Discovered new exit (range 16) 151 | -11/Scrapyard | Entered Materials 290 | -10/Materials | Discovered new exit (range 10) 305 | -10/Materials | Build established: Mutant 650 | -10/Materials | Discovered new exit (range 4) 865 | -10/Materials | Discovered new exit (range 13) 986 | -10/Materials | Discovered new exit (range 14) 1244 | -10/Materials | Repaired Lgt. Ion Engine 1384 | -10/Materials | Entered Mines 1418 | -10/Mines | Discovered new exit (range 7) 1427 | -10/Mines | Core integrity fell below 50% 1520 | -10/Mines | Core integrity fell below 20% 1535 | -10/Mines | Destroyed by G-34 Mercenary with Small Laser Last Messages --------------- 01501_ Kicked G-34 Mercenary. 01503_ K-01 Serf collects debris. 01504_ Kicked G-34 Mercenary. 01506_ K-01 Serf collects debris. 01508_ Kicked G-34 Mercenary out of the way. 01510_ K-01 Serf collects debris. 01511_ Kicked G-34 Mercenary. 01511_ Aluminum Leg destroyed. 01511_ U-05 Engineer builds a Wall. 01513_ K-01 Serf collects debris. 01514_ Kicked G-34 Mercenary. 01517_ K-01 Serf collects debris. 01520_ Kicked G-34 Mercenary. 01521_ K-01 Serf collects debris. 01526_ Kicked G-34 Mercenary. 01527_ K-01 Serf collects debris. 01527_ Aluminum Leg destroyed. 01528_ K-01 Serf collects debris. 01532_ Slammed into G-34 Mercenary. 01533_ K-01 Serf collects debris. Map ----- +----------------------------------------------------+ | ????????????????????????????????????????????? | | ????????????????????????????????????????????? | | ????????????????????????????????????????????? | | ????????????????????????????????????????????? | | ????????????????????????????????????????????? | | ????????????????????????????????????????????? | | ????????????????????????????????????????????? | | ???????????????????????#????????????????????? | | ??????????????????????? ????????????????????? | | ??????????????????????? ????????????????????? | | ???????????????????#### ##??????????????????? | | ??????????????????? #??????????????????? | | ???????????????????? #??????????????????? | | ????????????????????< #??????????????????? | | ????####????????????? #??????????????????? | | ???## ##???????????? ??????????????????? | | ??## ##???????????? #??????????????????? | | ??# ##??????????? #??????????????????? | | ??# ##??????????#%##??????????????????? | | ??## #######????# ##??????????????????? | | ???##### k ## ##??## ##??????????????????? | | ???????##k #### ##??????????????????? | | ????????# ###????????????????? | | ????????# %% ### #????????? | | ????????# g%%% #????????? | | ????????## ### %@### #?????????? | | ?????????#######?#####?##### ######?????????? | | ???????????????????????????? #??????????????? | | ?????????????????????????????#??????????????? | | ????????????????????????????????????????????? | | ????????????????????????????????????????????? | | ????????????????????????????????????????????? | | ????????????????????????????????????????????? | | ????????????????????????????????????????????? | | ????????????????????????????????????????????? | | ????????????????????????????????????????????? | | ????????????????????????????????????????????? | | ????????????????????????????????????????????? | | ????????????????????????????????????????????? | | ????????????????????????????????????????????? | | ????????????????????????????????????????????? | | ????????????????????????????????????????????? | | ????????????????????????????????????????????? | | ????????????????????????????????????????????? | | ????????????????????????????????????????????? | | ????????????????????????????????????????????? | | ????????????????????????????????????????????? | | ????????????????????????????????????????????? | | ????????????????????????????????????????????? | | ????????????????????????????????????????????? | +----------------------------------------------------+ Best States ------------- Heat Dissipation 25 Energy Generation 10 Energy Capacity 125 Matter Stores 300 Matter Capacity 300 Sight Range 16 Terrain Scan Density 10 Evasion (%) 55 Offensive Hacking 10 Item Schematics ----------------- None Robot Schematics ------------------ None Fabricated ------------ Nothing Alien Tech Used ----------------- None Achievements -------------- None Challenges ------------ None Game ------ Seed ExplosiveInsulationGenerator Manual? 0 Play Time 00:16:17 Cumulative 17.8 hours Start 2024.04.18 @ 10:43:13 End 2024.04.18 @ 21:10:29 Sessions 3 Manual Loads 0 Difficulty Rogue Special Mode None Game No. 31 Rogue 29 Adventurer 0 Explorer 2 Win Type - Total 0 Types 0/0/0/0/0/0/0/0/0 Lore% 7 Gallery% 21 Achievement% 22 Wizard Run 0 Options --------- Layout 2 ASCII 0 Keyboard 1 Movement Vi Keybinds 0 Fullscreen 2 Font 32/SmallcapsGlow Map View 50x44 Zoom Use 0% Tactical HUD 1 Map Filters NONE Filters NONE Steam 1 RUN: 363fc0a9-ac12-44e4-881b-5cdcf3b2a7d2